[Event "*** Titled Tuesday Blitz"]
[Site "Chess.com"]
[Date "2019.11.05"]
[Round "1"]
[White "ValeriyGrinev"]
[Black "SidArun"]
[Result "1/2-1/2"]
[WhiteElo "2550"]
[BlackElo "2157"]
[TimeControl "180+2"]
[EndTime "13:09:04 PST"]
[Termination "Game drawn - insufficient material"]

1. d4 {[%clk 0:03:01.7]} 1... Nf6 {[%clk 0:02:59.7]} 2. c4 {[%clk 0:03:02.8]}
2... e5 {[%clk 0:03:00.7]} 3. dxe5 {[%clk 0:03:03.3]} 3... Ng4 {[%clk
0:03:01.8]} 4. Nh3 {[%clk 0:03:00.6]} 4... Nc6 {[%clk 0:02:56.8]} 5. e3 {[%clk
0:03:00.4]} 5... Bb4+ {[%clk 0:02:54.9]} 6. Bd2 {[%clk 0:03:00.4]} 6... Qe7
{[%clk 0:02:55.3]} 7. Nc3 {[%clk 0:02:59]} 7... Ngxe5 {[%clk 0:02:52.4]} 8. Nd5
{[%clk 0:02:56.4]} 8... Bxd2+ {[%clk 0:02:46]} 9. Qxd2 {[%clk 0:02:58.3]} 9...
Qd8 {[%clk 0:02:43.4]} 10. Nhf4 {[%clk 0:02:51.7]} 10... d6 {[%clk 0:02:36.5]}
11. Be2 {[%clk 0:02:50]} 11... Be6 {[%clk 0:02:02.6]} 12. O-O {[%clk 0:02:45.5]}
12... O-O {[%clk 0:02:01.8]} 13. Rfd1 {[%clk 0:02:32.7]} 13... Bxd5 {[%clk
0:01:56]} 14. Nxd5 {[%clk 0:02:31.2]} 14... Ne7 {[%clk 0:01:55.4]} 15. f4 {[%clk
0:02:17.6]} 15... N5g6 {[%clk 0:01:37.3]} 16. Nc3 {[%clk 0:02:10]} 16... Re8
{[%clk 0:01:29.4]} 17. Bf3 {[%clk 0:02:06.5]} 17... Nf5 {[%clk 0:01:24.6]} 18.
Re1 {[%clk 0:02:03.1]} 18... c6 {[%clk 0:01:21.7]} 19. Rad1 {[%clk 0:02:01.7]}
19... Qb6 {[%clk 0:01:20.6]} 20. Be4 {[%clk 0:01:52.4]} 20... Nxe3 {[%clk
0:00:57.1]} 21. Qxe3 {[%clk 0:01:37.8]} 21... Qxe3+ {[%clk 0:00:57.1]} 22. Rxe3
{[%clk 0:01:39.7]} 22... f5 {[%clk 0:00:58.3]} 23. g3 {[%clk 0:01:21.4]} 23...
Rad8 {[%clk 0:00:42.1]} 24. Bd5+ {[%clk 0:01:09.7]} 24... cxd5 {[%clk
0:00:42.2]} 25. Rxe8+ {[%clk 0:01:11.6]} 25... Rxe8 {[%clk 0:00:43.4]} 26. Nxd5
{[%clk 0:01:13.5]} 26... Re2 {[%clk 0:00:43.2]} 27. Nc3 {[%clk 0:01:13.9]} 27...
Rxb2 {[%clk 0:00:42.9]} 28. Rxd6 {[%clk 0:01:15.2]} 28... Rc2 {[%clk 0:00:36.9]}
29. Nd5 {[%clk 0:01:00.5]} 29... Rxc4 {[%clk 0:00:36.8]} 30. Rd8+ {[%clk
0:01:01.2]} 30... Kf7 {[%clk 0:00:36.2]} 31. Ne3 {[%clk 0:01:00.4]} 31... Rc5
{[%clk 0:00:26.5]} 32. Rd7+ {[%clk 0:01:00.2]} 32... Kf6 {[%clk 0:00:21.2]} 33.
Rxb7 {[%clk 0:01:02.1]} 33... a5 {[%clk 0:00:21.8]} 34. a4 {[%clk 0:01:00.3]}
34... Ne7 {[%clk 0:00:22.8]} 35. Rb6+ {[%clk 0:00:57.2]} 35... Kf7 {[%clk
0:00:23.5]} 36. Ra6 {[%clk 0:00:57.2]} 36... g6 {[%clk 0:00:24.1]} 37. Kf2
{[%clk 0:00:56.2]} 37... Nd5 {[%clk 0:00:25.2]} 38. Ra7+ {[%clk 0:00:56]} 38...
Ke6 {[%clk 0:00:26.1]} 39. Rxh7 {[%clk 0:00:53.9]} 39... Nxe3 {[%clk 0:00:26.3]}
40. Kxe3 {[%clk 0:00:55.8]} 40... Rc4 {[%clk 0:00:27.9]} 41. h4 {[%clk
0:00:46.7]} 41... Rxa4 {[%clk 0:00:28.7]} 42. Rh6 {[%clk 0:00:47.7]} 42... Ra3+
{[%clk 0:00:29]} 43. Kf2 {[%clk 0:00:47.1]} 43... Kf7 {[%clk 0:00:30.2]} 44.
Rh7+ {[%clk 0:00:48.1]} 44... Kf6 {[%clk 0:00:30.8]} 45. Ra7 {[%clk 0:00:50]}
45... Ra2+ {[%clk 0:00:30.7]} 46. Ke3 {[%clk 0:00:50.5]} 46... Ra3+ {[%clk
0:00:32]} 47. Kd4 {[%clk 0:00:51]} 47... Rxg3 {[%clk 0:00:32.6]} 48. Ra6+ {[%clk
0:00:52.9]} 48... Kf7 {[%clk 0:00:32.7]} 49. Rxa5 {[%clk 0:00:53.2]} 49... Rg4
{[%clk 0:00:34]} 50. Ke5 {[%clk 0:00:54.4]} 50... Rxh4 {[%clk 0:00:34.4]} 51.
Ra7+ {[%clk 0:00:56.3]} 51... Kg8 {[%clk 0:00:31.8]} 52. Rb7 {[%clk 0:00:54.6]}
52... Rg4 {[%clk 0:00:31]} 53. Rc7 {[%clk 0:00:54.2]} 53... g5 {[%clk
0:00:32.1]} 54. Kxf5 {[%clk 0:00:49.1]} 54... Rxf4+ {[%clk 0:00:33.1]} 55. Kg6
{[%clk 0:00:50.7]} 55... Kf8 {[%clk 0:00:30.1]} 56. Kxg5 {[%clk 0:00:49.7]}
56... Rf7 {[%clk 0:00:31]} 57. Rxf7+ {[%clk 0:00:49.9]} 57... Kxf7 {[%clk
0:00:32.4]} 1/2-1/2

[Event "*** Titled Tuesday Blitz"]
[Site "Chess.com"]
[Date "2019.11.05"]
[Round "1"]
[White "Firouzja2003"]
[Black "ShahMatKanal"]
[Result "1-0"]
[WhiteElo "3070"]
[BlackElo "2527"]
[TimeControl "180+2"]
[EndTime "13:09:11 PST"]
[Termination "Firouzja2003 won by resignation"]

1. e4 {[%clk 0:03:01.9]} 1... c5 {[%clk 0:02:58.6]} 2. Nf3 {[%clk 0:03:03]} 2...
Nc6 {[%clk 0:03:00]} 3. Bb5 {[%clk 0:03:03.1]} 3... g6 {[%clk 0:03:00.5]} 4. O-O
{[%clk 0:03:02]} 4... Bg7 {[%clk 0:03:01.2]} 5. c3 {[%clk 0:03:03.4]} 5... d6
{[%clk 0:02:51.5]} 6. d4 {[%clk 0:03:03.4]} 6... cxd4 {[%clk 0:02:52.2]} 7. cxd4
{[%clk 0:03:05.3]} 7... Bd7 {[%clk 0:02:51.5]} 8. Nc3 {[%clk 0:03:04.6]} 8... a6
{[%clk 0:02:46.1]} 9. Bc4 {[%clk 0:02:41]} 9... b5 {[%clk 0:02:29.3]} 10. Bb3
{[%clk 0:02:42]} 10... Nh6 {[%clk 0:02:07]} 11. h3 {[%clk 0:02:36.5]} 11... O-O
{[%clk 0:02:06.7]} 12. Be3 {[%clk 0:02:33.2]} 12... Kh8 {[%clk 0:02:05.3]} 13.
Qd2 {[%clk 0:02:29.7]} 13... Ng8 {[%clk 0:02:05.9]} 14. Rfe1 {[%clk 0:02:26]}
14... Na5 {[%clk 0:02:02.7]} 15. Bd5 {[%clk 0:02:06.2]} 15... Rc8 {[%clk
0:01:55.9]} 16. a3 {[%clk 0:02:07]} 16... e6 {[%clk 0:01:50.9]} 17. Ba2 {[%clk
0:02:07]} 17... Nc4 {[%clk 0:01:50]} 18. Bxc4 {[%clk 0:02:08.1]} 18... bxc4
{[%clk 0:01:48.4]} 19. Bf4 {[%clk 0:02:07.2]} 19... Be8 {[%clk 0:01:34.8]} 20.
Rad1 {[%clk 0:02:04.6]} 20... Qb6 {[%clk 0:01:25.7]} 21. h4 {[%clk 0:01:54.6]}
21... h5 {[%clk 0:01:20.6]} 22. Bg5 {[%clk 0:01:51.2]} 22... Kh7 {[%clk
0:01:13.5]} 23. Re2 {[%clk 0:01:51.2]} 23... Rb8 {[%clk 0:00:58.4]} 24. Be3
{[%clk 0:01:43.9]} 24... Qc7 {[%clk 0:00:57]} 25. Ng5+ {[%clk 0:01:43.1]} 25...
Kh8 {[%clk 0:00:58.2]} 26. Bf4 {[%clk 0:01:42.4]} 26... Rb6 {[%clk 0:00:51.9]}
27. Qe3 {[%clk 0:01:35.6]} 27... Bd7 {[%clk 0:00:50.4]} 28. Qg3 {[%clk
0:01:35.8]} 28... f6 {[%clk 0:00:36]} 29. Nf3 {[%clk 0:01:33.9]} 29... Be8
{[%clk 0:00:37.2]} 30. e5 {[%clk 0:01:22.3]} 30... dxe5 {[%clk 0:00:33.3]} 31.
dxe5 {[%clk 0:01:24.2]} 31... f5 {[%clk 0:00:33.8]} 32. Red2 {[%clk 0:01:23.3]}
32... Nh6 {[%clk 0:00:26.5]} 33. Ng5 {[%clk 0:01:10.1]} 33... Ng4 {[%clk
0:00:24.1]} 34. Rd6 {[%clk 0:01:11.6]} 34... Rxd6 {[%clk 0:00:21.6]} 35. Rxd6
{[%clk 0:01:09.1]} 35... Bf7 {[%clk 0:00:16]} 36. f3 {[%clk 0:01:01.5]} 36...
Qc5+ {[%clk 0:00:15.8]} 37. Kh1 {[%clk 0:01:01.8]} 37... Bxe5 {[%clk 0:00:14]}
38. Bxe5+ {[%clk 0:00:59.9]} 38... Qxe5 {[%clk 0:00:13.9]} 39. Qxe5+ {[%clk
0:00:58.1]} 39... Nxe5 {[%clk 0:00:15.2]} 40. Rxa6 {[%clk 0:00:59]} 40... Nd3
{[%clk 0:00:12.5]} 41. Ra7 {[%clk 0:00:57.9]} 41... Kg8 {[%clk 0:00:12]} 42. Rb7
{[%clk 0:00:58.5]} 42... e5 {[%clk 0:00:11.8]} 43. a4 {[%clk 0:00:59.8]} 43...
e4 {[%clk 0:00:11.3]} 44. fxe4 {[%clk 0:01:00.6]} 44... Nf2+ {[%clk 0:00:12.3]}
45. Kg1 {[%clk 0:01:00.7]} 45... Nxe4 {[%clk 0:00:13.8]} 46. Ncxe4 {[%clk
0:00:59.2]} 46... fxe4 {[%clk 0:00:15.2]} 47. Rxf7 {[%clk 0:00:58.6]} 47... Ra8
{[%clk 0:00:04.3]} 48. Rc7 {[%clk 0:00:58.7]} 48... Rxa4 {[%clk 0:00:05.3]} 49.
Nxe4 {[%clk 0:00:59.7]} 49... Rb4 {[%clk 0:00:06.7]} 50. Rc8+ {[%clk 0:00:51]}
50... Kg7 {[%clk 0:00:06.9]} 51. Rc7+ {[%clk 0:00:49.2]} 51... Kf8 {[%clk
0:00:05]} 52. Nd6 {[%clk 0:00:44]} 52... Rxb2 {[%clk 0:00:05.1]} 53. Nxc4 {[%clk
0:00:45.3]} 53... Rb4 {[%clk 0:00:04.1]} 54. Kf2 {[%clk 0:00:45.7]} 1-0

[Event "*** Titled Tuesday Blitz"]
[Site "Chess.com"]
[Date "2019.11.05"]
[Round "1"]
[White "JustKid"]
[Black "JonahWillow"]
[Result "1/2-1/2"]
[WhiteElo "2438"]
[BlackElo "2794"]
[TimeControl "180+2"]
[EndTime "13:09:21 PST"]
[Termination "Game drawn by repetition"]

1. d4 {[%clk 0:03:01.9]} 1... Nf6 {[%clk 0:03:00.3]} 2. Bf4 {[%clk 0:03:03.4]}
2... e6 {[%clk 0:03:01.6]} 3. e3 {[%clk 0:03:04.8]} 3... c5 {[%clk 0:03:03]} 4.
Nf3 {[%clk 0:03:05.3]} 4... cxd4 {[%clk 0:03:04.4]} 5. exd4 {[%clk 0:03:06.5]}
5... b6 {[%clk 0:03:05.5]} 6. Nbd2 {[%clk 0:03:06.6]} 6... Be7 {[%clk
0:02:56.9]} 7. h3 {[%clk 0:03:07.6]} 7... Bb7 {[%clk 0:02:57.1]} 8. Bd3 {[%clk
0:03:09.1]} 8... O-O {[%clk 0:02:58.7]} 9. O-O {[%clk 0:03:10.8]} 9... d6 {[%clk
0:02:57.3]} 10. Bh2 {[%clk 0:03:11.7]} 10... Re8 {[%clk 0:02:56.1]} 11. Re1
{[%clk 0:03:13.2]} 11... Nbd7 {[%clk 0:02:53.2]} 12. a4 {[%clk 0:03:14.5]} 12...
a6 {[%clk 0:02:52.3]} 13. a5 {[%clk 0:03:15.9]} 13... b5 {[%clk 0:02:51.5]} 14.
c4 {[%clk 0:03:17.4]} 14... bxc4 {[%clk 0:02:38]} 15. Nxc4 {[%clk 0:03:19.3]}
15... d5 {[%clk 0:02:39.2]} 16. Nd6 {[%clk 0:02:54.5]} 16... Bxd6 {[%clk
0:02:39.8]} 17. Bxd6 {[%clk 0:02:56.4]} 17... Ne4 {[%clk 0:02:41.4]} 18. Bh2
{[%clk 0:02:48.9]} 18... Ndf6 {[%clk 0:02:32.7]} 19. Qa4 {[%clk 0:02:30.8]}
19... Rc8 {[%clk 0:02:23.6]} 20. Rec1 {[%clk 0:02:26.8]} 20... Nd6 {[%clk
0:02:03.5]} 21. Rxc8 {[%clk 0:02:14.9]} 21... Bxc8 {[%clk 0:02:05.4]} 22. Qc6
{[%clk 0:02:08.8]} 22... Nfe4 {[%clk 0:01:57.8]} 23. Bxa6 {[%clk 0:01:55.9]}
23... Bd7 {[%clk 0:01:31.4]} 24. Qc2 {[%clk 0:01:45.2]} 24... Qa8 {[%clk
0:01:21.3]} 25. Bd3 {[%clk 0:01:10.2]} 25... Bb5 {[%clk 0:01:18.7]} 26. Bxb5
{[%clk 0:01:04.6]} 26... Nxb5 {[%clk 0:01:20.6]} 27. Qa4 {[%clk 0:00:54.5]}
27... Qa6 {[%clk 0:01:16.9]} 28. Rc1 {[%clk 0:00:50.5]} 28... Ra8 {[%clk
0:01:14.7]} 29. b4 {[%clk 0:00:47.1]} 29... Nbc3 {[%clk 0:01:12.8]} 30. Rxc3
{[%clk 0:00:28.2]} 30... Nxc3 {[%clk 0:01:14.7]} 31. Qd7 {[%clk 0:00:29.6]}
31... Qc8 {[%clk 0:01:10.4]} 32. Qc7 {[%clk 0:00:17.5]} 32... Nb5 {[%clk
0:01:00.9]} 33. Qc5 {[%clk 0:00:17.5]} 33... Nc3 {[%clk 0:00:56.6]} 34. Ne5
{[%clk 0:00:15.8]} 34... Ne4 {[%clk 0:00:50.6]} 35. Qc6 {[%clk 0:00:11.5]} 35...
f6 {[%clk 0:00:46.5]} 36. Qxc8+ {[%clk 0:00:09.9]} 36... Rxc8 {[%clk 0:00:48.4]}
37. Nd3 {[%clk 0:00:11.4]} 37... Rc3 {[%clk 0:00:46.6]} 38. f3 {[%clk
0:00:06.8]} 38... Nd2 {[%clk 0:00:23.3]} 39. Nc5 {[%clk 0:00:07.9]} 39... Nc4
{[%clk 0:00:16.6]} 40. a6 {[%clk 0:00:07.8]} 40... Ra3 {[%clk 0:00:16.3]} 41. b5
{[%clk 0:00:09.2]} 41... Ra2 {[%clk 0:00:16.5]} 42. Bc7 {[%clk 0:00:09]} 42...
e5 {[%clk 0:00:11.1]} 43. dxe5 {[%clk 0:00:07.4]} 43... fxe5 {[%clk 0:00:13]}
44. b6 {[%clk 0:00:09]} 44... Ra1+ {[%clk 0:00:11.5]} 45. Kh2 {[%clk 0:00:09.9]}
45... Nxb6 {[%clk 0:00:07.3]} 46. Bxb6 {[%clk 0:00:11.8]} 46... d4 {[%clk
0:00:09.2]} 47. a7 {[%clk 0:00:12.6]} 47... Kf7 {[%clk 0:00:10.2]} 48. Kg3
{[%clk 0:00:13]} 48... Ke7 {[%clk 0:00:11]} 49. Nb3 {[%clk 0:00:13.1]} 49... Ra6
{[%clk 0:00:11.5]} 50. Nc5 {[%clk 0:00:08.7]} 50... Ra1 {[%clk 0:00:11.5]} 51.
Nb3 {[%clk 0:00:09.6]} 51... Ra6 {[%clk 0:00:12.5]} 52. Nc5 {[%clk 0:00:10.8]}
52... Ra1 {[%clk 0:00:13.6]} 1/2-1/2

[Event "*** Titled Tuesday Blitz"]
[Site "Chess.com"]
[Date "2019.11.05"]
[Round "1"]
[White "DanielNaroditsky"]
[Black "SharkAnto55"]
[Result "1-0"]
[WhiteElo "2969"]
[BlackElo "2500"]
[TimeControl "180+2"]
[EndTime "13:09:23 PST"]
[Termination "DanielNaroditsky won by checkmate"]

1. e4 {[%clk 0:03:01.7]} 1... c5 {[%clk 0:03:00.2]} 2. Nf3 {[%clk 0:03:02.4]}
2... d6 {[%clk 0:03:01.3]} 3. Bb5+ {[%clk 0:02:59]} 3... Bd7 {[%clk 0:02:59.8]}
4. Bxd7+ {[%clk 0:02:58.3]} 4... Nxd7 {[%clk 0:03:01.1]} 5. O-O {[%clk
0:03:00.2]} 5... Ngf6 {[%clk 0:03:01.6]} 6. d3 {[%clk 0:02:58.9]} 6... e6 {[%clk
0:02:58.5]} 7. Nc3 {[%clk 0:02:59.6]} 7... Be7 {[%clk 0:03:00.4]} 8. Ng5 {[%clk
0:03:01]} 8... h6 {[%clk 0:03:00.2]} 9. Nh3 {[%clk 0:03:02]} 9... O-O {[%clk
0:02:55.5]} 10. f4 {[%clk 0:03:03.1]} 10... Rb8 {[%clk 0:02:56.5]} 11. f5 {[%clk
0:03:04]} 11... Ne5 {[%clk 0:02:53.5]} 12. Nf4 {[%clk 0:02:55.3]} 12... exf5
{[%clk 0:02:52.3]} 13. exf5 {[%clk 0:02:53.4]} 13... d5 {[%clk 0:02:52]} 14. Re1
{[%clk 0:02:51.2]} 14... Nc6 {[%clk 0:02:48.7]} 15. Nh5 {[%clk 0:02:42.7]} 15...
Qd7 {[%clk 0:02:37.6]} 16. Nxf6+ {[%clk 0:01:35.8]} 16... Bxf6 {[%clk
0:02:39.3]} 17. Qg4 {[%clk 0:01:37.7]} 17... Kh7 {[%clk 0:02:32.3]} 18. Rf1
{[%clk 0:01:28.4]} 18... Rbe8 {[%clk 0:02:18.3]} 19. Ne2 {[%clk 0:01:18]} 19...
Nd4 {[%clk 0:02:13.2]} 20. Nxd4 {[%clk 0:01:17.5]} 20... cxd4 {[%clk 0:02:08.3]}
21. Bd2 {[%clk 0:01:17.2]} 21... Rc8 {[%clk 0:02:03.3]} 22. Rac1 {[%clk
0:01:16.8]} 22... Rc6 {[%clk 0:01:57.6]} 23. Rf2 {[%clk 0:01:10.9]} 23... Rfc8
{[%clk 0:01:56.8]} 24. Bf4 {[%clk 0:01:12.5]} 24... Qe7 {[%clk 0:01:43.9]} 25.
Qd1 {[%clk 0:00:44.3]} 25... Qb4 {[%clk 0:01:32.6]} 26. Rb1 {[%clk 0:00:45.4]}
26... Qa4 {[%clk 0:01:26.3]} 27. b3 {[%clk 0:00:45.1]} 27... Qb4 {[%clk
0:00:39.3]} 28. Re2 {[%clk 0:00:44]} 28... a5 {[%clk 0:00:36.6]} 29. a4 {[%clk
0:00:44.5]} 29... Qc5 {[%clk 0:00:32.4]} 30. g4 {[%clk 0:00:41.8]} 30... Qf8
{[%clk 0:00:22.3]} 31. Rc1 {[%clk 0:00:37.6]} 31... Qd8 {[%clk 0:00:13.6]} 32.
Qe1 {[%clk 0:00:32.4]} 32... b6 {[%clk 0:00:13.5]} 33. Qf2 {[%clk 0:00:29.3]}
33... Rc3 {[%clk 0:00:12.1]} 34. Rce1 {[%clk 0:00:27.4]} 34... Qd7 {[%clk
0:00:11.4]} 35. h4 {[%clk 0:00:27.5]} 35... Qd8 {[%clk 0:00:09]} 36. g5 {[%clk
0:00:26.6]} 36... hxg5 {[%clk 0:00:10]} 37. hxg5 {[%clk 0:00:27.9]} 37... Bxg5
{[%clk 0:00:11.9]} 38. Qh2+ {[%clk 0:00:23.3]} 38... Bh6 {[%clk 0:00:08.7]} 39.
Bxh6 {[%clk 0:00:14.9]} 39... gxh6 {[%clk 0:00:10.4]} 40. Kh1 {[%clk 0:00:07.1]}
40... Qf6 {[%clk 0:00:11.5]} 41. Rg2 {[%clk 0:00:06.7]} 41... Qxf5 {[%clk
0:00:11.1]} 42. Reg1 {[%clk 0:00:08]} 42... Qf6 {[%clk 0:00:11.6]} 43. Qg3
{[%clk 0:00:06]} 43... Rxc2 {[%clk 0:00:10.1]} 44. Rxc2 {[%clk 0:00:07.9]} 44...
Rxc2 {[%clk 0:00:09.1]} 45. Qg8# {[%clk 0:00:09]} 1-0

[Event "*** Titled Tuesday Blitz"]
[Site "Chess.com"]
[Date "2019.11.05"]
[Round "1"]
[White "novocane"]
[Black "misha_chessone"]
[Result "0-1"]
[WhiteElo "2180"]
[BlackElo "2585"]
[TimeControl "180+2"]
[EndTime "13:09:27 PST"]
[Termination "misha_chessone won on time"]

1. d4 {[%clk 0:02:29.8]} 1... d5 {[%clk 0:02:59.8]} 2. c4 {[%clk 0:02:30.5]}
2... c6 {[%clk 0:03:00.9]} 3. cxd5 {[%clk 0:02:29.1]} 3... cxd5 {[%clk
0:03:00.6]} 4. Bf4 {[%clk 0:02:27.1]} 4... Nc6 {[%clk 0:02:59.9]} 5. e3 {[%clk
0:02:26.2]} 5... Nf6 {[%clk 0:03:00.1]} 6. Nc3 {[%clk 0:02:17.4]} 6... Bf5
{[%clk 0:02:58.7]} 7. Qb3 {[%clk 0:02:15.8]} 7... Qb6 {[%clk 0:02:38.4]} 8. Qxb6
{[%clk 0:02:09.1]} 8... axb6 {[%clk 0:02:38.3]} 9. Nf3 {[%clk 0:02:07.7]} 9...
e6 {[%clk 0:02:33.2]} 10. Be2 {[%clk 0:01:50.8]} 10... Be7 {[%clk 0:02:31]} 11.
O-O {[%clk 0:01:29.3]} 11... O-O {[%clk 0:02:31.3]} 12. Ne5 {[%clk 0:01:20.4]}
12... Rfc8 {[%clk 0:02:24.1]} 13. f3 {[%clk 0:01:05.5]} 13... h6 {[%clk
0:02:16.8]} 14. g4 {[%clk 0:00:54.3]} 14... Bh7 {[%clk 0:02:15]} 15. Rfc1 {[%clk
0:00:52.5]} 15... Nb4 {[%clk 0:02:06.2]} 16. a3 {[%clk 0:00:38.4]} 16... Nc2
{[%clk 0:01:58.3]} 17. Ra2 {[%clk 0:00:30]} 17... g5 {[%clk 0:01:58.9]} 18. Bg3
{[%clk 0:00:30]} 18... Nxe3 {[%clk 0:01:58.9]} 19. Bf2 {[%clk 0:00:27.3]} 19...
Nc4 {[%clk 0:01:43.6]} 20. Nb5 {[%clk 0:00:20.6]} 20... h5 {[%clk 0:01:25.8]}
21. Nxc4 {[%clk 0:00:17.4]} 21... dxc4 {[%clk 0:01:26]} 22. Rxc4 {[%clk
0:00:17.3]} 22... Rxc4 {[%clk 0:01:26.1]} 23. Bxc4 {[%clk 0:00:18.2]} 23... hxg4
{[%clk 0:01:27.3]} 24. fxg4 {[%clk 0:00:18.7]} 24... Nxg4 {[%clk 0:01:28.4]} 25.
d5 {[%clk 0:00:19.7]} 25... Nxf2 {[%clk 0:01:13.4]} 26. Kxf2 {[%clk 0:00:20.3]}
26... Bc5+ {[%clk 0:01:14.5]} 27. Kf3 {[%clk 0:00:21.5]} 27... exd5 {[%clk
0:01:14.5]} 28. Bxd5 {[%clk 0:00:22.6]} 28... Rd8 {[%clk 0:01:05.5]} 29. Be4
{[%clk 0:00:22.2]} 29... g4+ {[%clk 0:01:02.5]} 30. Kf4 {[%clk 0:00:20.4]} 30...
Bxe4 {[%clk 0:00:59.9]} 31. Kxe4 {[%clk 0:00:22.3]} 31... Rd2 {[%clk 0:00:58.2]}
32. Nc3 {[%clk 0:00:15.2]} 32... Rxh2 {[%clk 0:00:56.8]} 33. Kf4 {[%clk
0:00:16.5]} 33... Bd4 {[%clk 0:00:53.2]} 34. Ne4 {[%clk 0:00:17.3]} 34... Rxb2
{[%clk 0:00:47.6]} 35. Rxb2 {[%clk 0:00:17.8]} 35... Bxb2 {[%clk 0:00:48.6]} 36.
a4 {[%clk 0:00:19.1]} 36... Kf8 {[%clk 0:00:43.9]} 37. Kxg4 {[%clk 0:00:15]}
37... Ke7 {[%clk 0:00:44.6]} 38. Kf5 {[%clk 0:00:16.3]} 38... Kd7 {[%clk
0:00:44.1]} 39. Ng5 {[%clk 0:00:15.6]} 39... f6 {[%clk 0:00:44]} 40. Ne4 {[%clk
0:00:16]} 40... Kc6 {[%clk 0:00:44.6]} 41. Ke6 {[%clk 0:00:16]} 41... b5 {[%clk
0:00:41.8]} 42. axb5+ {[%clk 0:00:13.8]} 42... Kxb5 {[%clk 0:00:43]} 43. Nd6+
{[%clk 0:00:15.2]} 43... Kc6 {[%clk 0:00:42.7]} 44. Nc4 {[%clk 0:00:15.8]} 44...
Bc3 {[%clk 0:00:41.4]} 45. Ne3 {[%clk 0:00:16.1]} 45... b5 {[%clk 0:00:40.5]}
46. Nd5 {[%clk 0:00:14.2]} 46... Be5 {[%clk 0:00:40.7]} 47. Nb4+ {[%clk
0:00:13]} 47... Kc5 {[%clk 0:00:41.7]} 0-1

[Event "*** Titled Tuesday Blitz"]
[Site "Chess.com"]
[Date "2019.11.05"]
[Round "1"]
[White "Heineccius"]
[Black "Galiev_Azat"]
[Result "1-0"]
[WhiteElo "2607"]
[BlackElo "2230"]
[TimeControl "180+2"]
[EndTime "13:09:29 PST"]
[Termination "Heineccius won on time"]

1. d4 {[%clk 0:03:01.9]} 1... Nf6 {[%clk 0:02:58.9]} 2. c4 {[%clk 0:03:00.5]}
2... e6 {[%clk 0:02:59.4]} 3. Nc3 {[%clk 0:03:00.5]} 3... Bb4 {[%clk 0:02:59.6]}
4. g3 {[%clk 0:03:00.1]} 4... Ne4 {[%clk 0:02:42.4]} 5. Qc2 {[%clk 0:02:59]}
5... f5 {[%clk 0:02:32.9]} 6. Bg2 {[%clk 0:02:59.6]} 6... Bxc3+ {[%clk
0:02:31.7]} 7. bxc3 {[%clk 0:02:58.1]} 7... Nf6 {[%clk 0:02:28.4]} 8. Nf3 {[%clk
0:02:57]} 8... O-O {[%clk 0:02:28.6]} 9. O-O {[%clk 0:02:57.2]} 9... d6 {[%clk
0:02:21.2]} 10. c5 {[%clk 0:02:57.7]} 10... Nc6 {[%clk 0:02:15.8]} 11. Bf4
{[%clk 0:02:52.4]} 11... Qe7 {[%clk 0:02:11.9]} 12. cxd6 {[%clk 0:02:50.3]}
12... cxd6 {[%clk 0:02:12.2]} 13. Qb3 {[%clk 0:02:42.4]} 13... Kh8 {[%clk
0:02:06]} 14. Qa3 {[%clk 0:02:37.8]} 14... Rd8 {[%clk 0:01:54.3]} 15. h4 {[%clk
0:02:26.4]} 15... b6 {[%clk 0:01:50.3]} 16. Ng5 {[%clk 0:02:20.7]} 16... Bb7
{[%clk 0:01:47.1]} 17. Bxd6 {[%clk 0:02:19.7]} 17... Qd7 {[%clk 0:01:31.9]} 18.
Bf4 {[%clk 0:02:06.1]} 18... h6 {[%clk 0:01:31.9]} 19. Nf3 {[%clk 0:02:05.6]}
19... Rac8 {[%clk 0:01:32.3]} 20. Ne5 {[%clk 0:02:00.1]} 20... Nxe5 {[%clk
0:01:30.8]} 21. Bxe5 {[%clk 0:02:01.6]} 21... Bxg2 {[%clk 0:01:28.5]} 22. Kxg2
{[%clk 0:02:02.3]} 22... Qc6+ {[%clk 0:01:24.5]} 23. Kg1 {[%clk 0:02:02.8]}
23... Nd5 {[%clk 0:01:14.4]} 24. Qc1 {[%clk 0:01:45.7]} 24... Kh7 {[%clk
0:01:12.2]} 25. Qa3 {[%clk 0:01:34.2]} 25... Nxc3 {[%clk 0:01:05.6]} 26. Rfe1
{[%clk 0:01:28.9]} 26... a5 {[%clk 0:01:00.8]} 27. Kh2 {[%clk 0:01:22.9]} 27...
Nb5 {[%clk 0:00:55]} 28. Qb2 {[%clk 0:01:09.1]} 28... a4 {[%clk 0:00:41.8]} 29.
Rab1 {[%clk 0:01:04.2]} 29... Rd5 {[%clk 0:00:37.6]} 30. Rec1 {[%clk 0:00:56.3]}
30... Qd7 {[%clk 0:00:37.6]} 31. Rxc8 {[%clk 0:00:52.9]} 31... Qxc8 {[%clk
0:00:38.5]} 32. Qb4 {[%clk 0:00:42.8]} 32... Qd7 {[%clk 0:00:26]} 33. e3 {[%clk
0:00:40.1]} 33... Qf7 {[%clk 0:00:23]} 34. Rc1 {[%clk 0:00:32.7]} 34... a3
{[%clk 0:00:21.5]} 35. Rc8 {[%clk 0:00:26]} 35... Kg6 {[%clk 0:00:20.1]} 36. Rb8
{[%clk 0:00:26.1]} 36... Qd7 {[%clk 0:00:19.9]} 37. Rxb6 {[%clk 0:00:26.5]}
37... Na7 {[%clk 0:00:13.5]} 38. Qf8 {[%clk 0:00:26.1]} 38... Nc6 {[%clk
0:00:10.6]} 39. Rxc6 {[%clk 0:00:23.9]} 39... Rxe5 {[%clk 0:00:11.3]} 40. Rd6
{[%clk 0:00:23.9]} 40... Qb5 {[%clk 0:00:05.3]} 41. dxe5 {[%clk 0:00:24.2]}
41... Qf1 {[%clk 0:00:04.9]} 42. Rd2 {[%clk 0:00:23.4]} 42... f4 {[%clk
0:00:05]} 43. Qxf4 {[%clk 0:00:23.7]} 43... h5 {[%clk 0:00:01.8]} 44. Qg5+
{[%clk 0:00:23.6]} 1-0